[Event "Titled Tuesday Blitz March 14 Early 2023"]
[White "Shubenkova, Veronika"]
[Black "Levitan, Caleb Levi"]
[WhiteFideId "44124040"]
[BlackFideId "14332620"]
[WhiteElo "2027"]
[BlackElo "1963"]
[Result "1-0"]
[Round "05"]
[TimeControl "180+2"]
[Date "2023.03.14"]
[WhiteClock "0:00:44"]
[BlackClock "0:00:05"]

1. e4 {[%clk 0:03:00]}  e5 {[%clk 0:02:59]} 2. Nf3 {[%clk 0:03:00]}  Nc6 {[%clk 0:03:00]} 3. Bb5 {[%clk 0:03:00]}  a6 {[%clk 0:02:58]} 4. Bxc6 {[%clk 0:03:00]}  dxc6 {[%clk 0:02:59]} 5. O-O {[%clk 0:03:01]}  Bg4 {[%clk 0:02:56]} 6. h3 {[%clk 0:03:01]}  h5 {[%clk 0:02:56]} 7. d3 {[%clk 0:03:00]}  Qf6 {[%clk 0:02:51]} 8. Be3 {[%clk 0:03:00]}  Ne7 {[%clk 0:02:47]} 9. Nbd2 {[%clk 0:02:59]}  Ng6 {[%clk 0:02:47]} 10. Bg5 {[%clk 0:02:57]}  Qxg5 {[%clk 0:02:31]} 11. Nxg5 {[%clk 0:02:57]}  Bxd1 {[%clk 0:02:31]} 12. Raxd1 {[%clk 0:02:57]}  Be7 {[%clk 0:02:22]} 13. Ngf3 {[%clk 0:02:56]}  f6 {[%clk 0:02:22]} 14. Rfe1 {[%clk 0:02:55]}  O-O-O {[%clk 0:02:21]} 15. Nb3 {[%clk 0:02:55]}  Nf4 {[%clk 0:02:18]} 16. Kh2 {[%clk 0:02:55]}  g5 {[%clk 0:02:18]} 17. g3 {[%clk 0:02:54]}  Ne6 {[%clk 0:02:13]} 18. d4 {[%clk 0:02:53]}  g4 {[%clk 0:02:01]} 19. d5 {[%clk 0:02:28]}  cxd5 {[%clk 0:01:47]} 20. exd5 {[%clk 0:02:28]}  Nc5 {[%clk 0:01:05]} 21. Nh4 {[%clk 0:02:26]}  Nxb3 {[%clk 0:01:02]} 22. axb3 {[%clk 0:02:27]}  Bc5 {[%clk 0:00:58]} 23. hxg4 {[%clk 0:02:20]}  Bxf2 {[%clk 0:00:54]} 24. Rf1 {[%clk 0:02:18]}  Be3 {[%clk 0:00:46]} 25. Rxf6 {[%clk 0:02:11]}  hxg4 {[%clk 0:00:42]} 26. Rf5 {[%clk 0:02:09]}  Rdf8 {[%clk 0:00:34]} 27. Kg2 {[%clk 0:01:58]}  Rxf5 {[%clk 0:00:29]} 28. Nxf5 {[%clk 0:01:57]}  Bc5 {[%clk 0:00:27]} 29. Re1 {[%clk 0:01:51]}  Bd6 {[%clk 0:00:22]} 30. Re4 {[%clk 0:01:51]}  Rf8 {[%clk 0:00:22]} 31. Nxd6+ {[%clk 0:01:46]}  cxd6 {[%clk 0:00:23]} 32. Rxg4 {[%clk 0:01:46]}  Kc7 {[%clk 0:00:23]} 33. Rg7+ {[%clk 0:01:45]}  Kb6 {[%clk 0:00:23]} 34. Rg6 {[%clk 0:01:43]}  Kc5 {[%clk 0:00:22]} 35. c4 {[%clk 0:01:41]}  b5 {[%clk 0:00:23]} 36. Re6 {[%clk 0:01:35]}  bxc4 {[%clk 0:00:20]} 37. bxc4 {[%clk 0:01:36]}  Rb8 {[%clk 0:00:20]} 38. g4 {[%clk 0:01:28]}  Rxb2+ {[%clk 0:00:20]} 39. Kg3 {[%clk 0:01:28]}  Rc2 {[%clk 0:00:19]} 40. g5 {[%clk 0:01:28]}  Rxc4 {[%clk 0:00:19]} 41. g6 {[%clk 0:01:28]}  Rc1 {[%clk 0:00:17]} 42. Kg2 {[%clk 0:01:26]}  Rc2+ {[%clk 0:00:16]} 43. Kf3 {[%clk 0:01:26]}  Rc1 {[%clk 0:00:16]} 44. Ke4 {[%clk 0:01:25]}  Re1+ {[%clk 0:00:15]} 45. Kf5 {[%clk 0:01:23]}  Rf1+ {[%clk 0:00:16]} 46. Kg5 {[%clk 0:01:23]}  Kxd5 {[%clk 0:00:16]} 47. Re8 {[%clk 0:01:20]}  e4 {[%clk 0:00:15]} 48. g7 {[%clk 0:01:09]}  Rg1+ {[%clk 0:00:12]} 49. Kf6 {[%clk 0:01:09]}  Kd4 {[%clk 0:00:12]} 50. Ra8 {[%clk 0:01:07]}  e3 {[%clk 0:00:11]} 51. Rxa6 {[%clk 0:01:05]}  e2 {[%clk 0:00:11]} 52. Rxd6+ {[%clk 0:01:05]}  Kc5 {[%clk 0:00:11]} 53. Re6 {[%clk 0:01:05]}  Rg2 {[%clk 0:00:08]} 54. Rxe2 {[%clk 0:01:03]}  Rxe2 {[%clk 0:00:06]} 55. g8=Q {[%clk 0:01:04]}  Rf2+ {[%clk 0:00:07]} 56. Ke7 {[%clk 0:01:04]}  Re2+ {[%clk 0:00:08]} 57. Kd8 {[%clk 0:01:04]}  Rd2+ {[%clk 0:00:09]} 58. Kc8 {[%clk 0:01:04]}  Kd4 {[%clk 0:00:06]} 59. Qd8+ {[%clk 0:01:04]}  Ke3 {[%clk 0:00:06]} 60. Qg5+ {[%clk 0:01:03]}  Ke2 {[%clk 0:00:06]} 61. Qg4+ {[%clk 0:01:02]}  Kf2 {[%clk 0:00:06]} 62. Kc7 {[%clk 0:01:01]}  Rd3 {[%clk 0:00:05]} 63. Kc6 {[%clk 0:01:00]}  Re3 {[%clk 0:00:05]} 64. Kc5 {[%clk 0:00:59]}  Rg3 {[%clk 0:00:05]} 65. Qd4+ {[%clk 0:00:59]}  Kg2 {[%clk 0:00:05]} 66. Qe4+ {[%clk 0:00:57]}  Kf2 {[%clk 0:00:05]} 67. Kd5 {[%clk 0:00:56]}  Rf3 {[%clk 0:00:05]} 68. Qc2+ {[%clk 0:00:56]}  Kg3 {[%clk 0:00:04]} 69. Ke4 {[%clk 0:00:55]}  Ra3 {[%clk 0:00:03]} 70. Qc7+ {[%clk 0:00:53]}  Kf2 {[%clk 0:00:03]} 71. Qc5+ {[%clk 0:00:52]}  Ke2 {[%clk 0:00:02]} 72. Qxa3 {[%clk 0:00:52]}  Kd2 {[%clk 0:00:03]} 73. Kd4 {[%clk 0:00:51]}  Kc2 {[%clk 0:00:04]} 74. Kc4 {[%clk 0:00:51]}  Kb1 {[%clk 0:00:05]} 75. Qe3 {[%clk 0:00:47]}  Ka2 {[%clk 0:00:05]} 76. Qc3 {[%clk 0:00:44]}  Kb1 {[%clk 0:00:05]} 77. Qd2 {[%clk 0:00:44]}  Ka1 {[%clk 0:00:05]} 78. Kb3 {[%clk 0:00:44]} 1-0


[Site "https://www.chess.com"]

[Event "Titled Tuesday Blitz March 14 Early 2023"]
[White "Jiang, Andrew"]
[Black "Zaksaite, Salomeja"]
[WhiteFideId "30953510"]
[BlackFideId "12801496"]
[WhiteElo "1883"]
[BlackElo "2059"]
[Result "1-0"]
[Round "05"]
[TimeControl "180+2"]
[Date "2023.03.14"]
[WhiteClock "0:02:19"]
[BlackClock "0:00:04"]

1. e4 {[%clk 0:03:00]}  c5 {[%clk 0:02:59]} 2. Nf3 {[%clk 0:02:59]}  Nc6 {[%clk 0:02:59]} 3. c3 {[%clk 0:02:59]}  Nf6 {[%clk 0:02:55]} 4. e5 {[%clk 0:02:57]}  Nd5 {[%clk 0:02:54]} 5. d4 {[%clk 0:02:58]}  cxd4 {[%clk 0:02:54]} 6. cxd4 {[%clk 0:02:56]}  e6 {[%clk 0:02:50]} 7. a3 {[%clk 0:02:53]}  d6 {[%clk 0:02:49]} 8. Bc4 {[%clk 0:02:52]}  dxe5 {[%clk 0:02:46]} 9. dxe5 {[%clk 0:02:51]}  Nb6 {[%clk 0:02:46]} 10. Qxd8+ {[%clk 0:02:50]}  Nxd8 {[%clk 0:02:44]} 11. Bb5+ {[%clk 0:02:49]}  Bd7 {[%clk 0:02:44]} 12. Bxd7+ {[%clk 0:02:48]}  Nxd7 {[%clk 0:02:44]} 13. Nc3 {[%clk 0:02:47]}  Nc6 {[%clk 0:02:44]} 14. Bf4 {[%clk 0:02:46]}  O-O-O {[%clk 0:02:43]} 15. O-O-O {[%clk 0:02:45]}  Be7 {[%clk 0:01:47]} 16. Kc2 {[%clk 0:02:33]}  g5 {[%clk 0:01:02]} 17. Bxg5 {[%clk 0:02:30]}  Bxg5 {[%clk 0:01:01]} 18. Nxg5 {[%clk 0:02:30]}  Ndxe5 {[%clk 0:00:57]} 19. Rxd8+ {[%clk 0:02:30]}  Nxd8 {[%clk 0:00:36]} 20. f4 {[%clk 0:02:29]}  Nec6 {[%clk 0:00:34]} 21. Nce4 {[%clk 0:02:25]}  Rg8 {[%clk 0:00:26]} 22. g3 {[%clk 0:02:24]}  h6 {[%clk 0:00:26]} 23. Nd6+ {[%clk 0:02:22]}  Kc7 {[%clk 0:00:21]} 24. Ngxf7 {[%clk 0:02:20]}  Rf8 {[%clk 0:00:04]} 25. Nxd8 {[%clk 0:02:19]} 1-0


[Site "https://www.chess.com"]

[Event "Titled Tuesday Blitz March 14 Early 2023"]
[White "Bolanos, Fernando"]
[Black "Rosenberg, Evan S"]
[WhiteFideId "3304094"]
[BlackFideId "2019299"]
[WhiteElo "2166"]
[BlackElo "2415"]
[Result "1-0"]
[Round "05"]
[TimeControl "180+2"]
[Date "2023.03.14"]
[WhiteClock "0:00:04"]
[BlackClock "0:00:02"]

1. e4 {[%clk 0:02:59]}  e5 {[%clk 0:02:58]} 2. Nf3 {[%clk 0:02:59]}  Nc6 {[%clk 0:02:49]} 3. Bc4 {[%clk 0:02:58]}  Nf6 {[%clk 0:02:49]} 4. d3 {[%clk 0:02:55]}  h6 {[%clk 0:02:49]} 5. O-O {[%clk 0:02:55]}  d6 {[%clk 0:02:33]} 6. c3 {[%clk 0:02:54]}  g5 {[%clk 0:02:30]} 7. b4 {[%clk 0:02:22]}  Bg7 {[%clk 0:02:20]} 8. Nbd2 {[%clk 0:02:09]}  O-O {[%clk 0:01:48]} 9. Re1 {[%clk 0:01:34]}  g4 {[%clk 0:01:44]} 10. Nh4 {[%clk 0:01:34]}  Nxe4 {[%clk 0:01:35]} 11. dxe4 {[%clk 0:01:18]}  Qxh4 {[%clk 0:01:34]} 12. Nf1 {[%clk 0:01:18]}  Be6 {[%clk 0:01:29]} 13. Bxe6 {[%clk 0:01:11]}  fxe6 {[%clk 0:01:29]} 14. Be3 {[%clk 0:01:11]}  Rf7 {[%clk 0:01:13]} 15. a4 {[%clk 0:01:10]}  Raf8 {[%clk 0:01:12]} 16. Ra2 {[%clk 0:01:11]}  a6 {[%clk 0:01:07]} 17. Ree2 {[%clk 0:00:59]}  Ne7 {[%clk 0:00:48]} 18. b5 {[%clk 0:00:58]}  axb5 {[%clk 0:00:48]} 19. axb5 {[%clk 0:00:59]}  b6 {[%clk 0:00:48]} 20. Ra7 {[%clk 0:00:33]}  Ng6 {[%clk 0:00:46]} 21. Rea2 {[%clk 0:00:33]}  Nf4 {[%clk 0:00:35]} 22. Qb3 {[%clk 0:00:19]}  Kh8 {[%clk 0:00:20]} 23. Ng3 {[%clk 0:00:16]}  d5 {[%clk 0:00:15]} 24. Ra8 {[%clk 0:00:15]}  d4 {[%clk 0:00:14]} 25. Bd2 {[%clk 0:00:09]}  Nxg2 {[%clk 0:00:10]} 26. Rxf8+ {[%clk 0:00:02]}  Rxf8 {[%clk 0:00:09]} 27. Bxh6 {[%clk 0:00:02]}  Bxh6 {[%clk 0:00:07]} 28. Kxg2 {[%clk 0:00:03]}  Qh3+ {[%clk 0:00:06]} 29. Kg1 {[%clk 0:00:03]}  Bf4 {[%clk 0:00:05]} 30. Qxe6 {[%clk 0:00:04]}  Bxg3 {[%clk 0:00:05]} 31. hxg3 {[%clk 0:00:04]}  Qh5 {[%clk 0:00:04]} 32. cxd4 {[%clk 0:00:04]}  exd4 {[%clk 0:00:04]} 33. Rc2 {[%clk 0:00:04]}  Qxb5 {[%clk 0:00:02]} 34. Qh6+ {[%clk 0:00:04]}  Kg8 {[%clk 0:00:03]} 35. Qg6+ {[%clk 0:00:04]}  Kh8 {[%clk 0:00:03]} 36. Qh6+ {[%clk 0:00:05]}  Kg8 {[%clk 0:00:04]} 37. Rxc7 {[%clk 0:00:04]}  Qb2 {[%clk 0:00:02]} 38. Qg7# {[%clk 0:00:04]} 1-0


[Site "https://www.chess.com"]

[Event "Titled Tuesday Blitz March 14 Early 2023"]
[White "Hoffmann, Asa"]
[Black "Botez, Alexandra"]
[WhiteFideId "2001470"]
[BlackFideId "2603365"]
[WhiteElo "2117"]
[BlackElo "2059"]
[Result "0-1"]
[Round "05"]
[TimeControl "180+2"]
[Date "2023.03.14"]
[WhiteClock "0:00:17"]
[BlackClock "0:00:10"]

1. d4 {[%clk 0:02:57]}  c5 {[%clk 0:02:57]} 2. dxc5 {[%clk 0:02:56]}  e6 {[%clk 0:02:52]} 3. Nc3 {[%clk 0:02:55]}  Bxc5 {[%clk 0:02:51]} 4. Ne4 {[%clk 0:02:55]}  Nf6 {[%clk 0:02:48]} 5. Nxc5 {[%clk 0:02:54]}  Qa5+ {[%clk 0:02:47]} 6. c3 {[%clk 0:02:53]}  Qxc5 {[%clk 0:02:47]} 7. Be3 {[%clk 0:02:52]}  Qd5 {[%clk 0:02:41]} 8. Qc2 {[%clk 0:02:48]}  O-O {[%clk 0:02:40]} 9. Rd1 {[%clk 0:02:47]}  Qxa2 {[%clk 0:02:32]} 10. Nf3 {[%clk 0:02:46]}  d5 {[%clk 0:02:29]} 11. g3 {[%clk 0:02:45]}  Bd7 {[%clk 0:02:19]} 12. Qc1 {[%clk 0:02:33]}  a5 {[%clk 0:02:06]} 13. Bg2 {[%clk 0:02:32]}  a4 {[%clk 0:02:05]} 14. O-O {[%clk 0:02:31]}  Nc6 {[%clk 0:01:40]} 15. Nd2 {[%clk 0:02:15]}  b5 {[%clk 0:01:17]} 16. Bc5 {[%clk 0:02:12]}  Rfc8 {[%clk 0:01:15]} 17. Qc2 {[%clk 0:02:12]}  a3 {[%clk 0:01:05]} 18. Rb1 {[%clk 0:02:03]}  b4 {[%clk 0:00:55]} 19. Rfc1 {[%clk 0:01:43]}  bxc3 {[%clk 0:00:47]} 20. Qxc3 {[%clk 0:01:33]}  axb2 {[%clk 0:00:47]} 21. Rxb2 {[%clk 0:01:32]}  Qa6 {[%clk 0:00:45]} 22. Bf1 {[%clk 0:01:22]}  Qa4 {[%clk 0:00:30]} 23. Rb7 {[%clk 0:01:03]}  d4 {[%clk 0:00:28]} 24. Qc4 {[%clk 0:01:01]}  Qxc4 {[%clk 0:00:28]} 25. Rxc4 {[%clk 0:01:01]}  Ne5 {[%clk 0:00:24]} 26. Rc2 {[%clk 0:00:53]}  Ra5 {[%clk 0:00:18]} 27. Bxd4 {[%clk 0:00:49]}  Rxc2 {[%clk 0:00:18]} 28. Bxe5 {[%clk 0:00:49]}  Be8 {[%clk 0:00:14]} 29. Nf3 {[%clk 0:00:47]}  Rc8 {[%clk 0:00:12]} 30. Kg2 {[%clk 0:00:43]}  Nd5 {[%clk 0:00:12]} 31. e4 {[%clk 0:00:42]}  Nf6 {[%clk 0:00:12]} 32. Bxf6 {[%clk 0:00:41]}  gxf6 {[%clk 0:00:12]} 33. Be2 {[%clk 0:00:38]}  Bc6 {[%clk 0:00:11]} 34. Rb6 {[%clk 0:00:37]}  Bxe4 {[%clk 0:00:10]} 35. h4 {[%clk 0:00:35]}  Ra2 {[%clk 0:00:10]} 36. Bd1 {[%clk 0:00:34]}  Rd2 {[%clk 0:00:09]} 37. Bb3 {[%clk 0:00:32]}  Rd3 {[%clk 0:00:09]} 38. Bxe6 {[%clk 0:00:20]}  Bxf3+ {[%clk 0:00:09]} 39. Kh3 {[%clk 0:00:19]}  fxe6 {[%clk 0:00:08]} 40. Rxe6 {[%clk 0:00:19]}  Rc1 {[%clk 0:00:07]} 41. g4 {[%clk 0:00:18]}  Bd5+ {[%clk 0:00:05]} 42. Re3 {[%clk 0:00:17]}  Rxe3+ {[%clk 0:00:05]} 43. fxe3 {[%clk 0:00:17]}  Rc3 {[%clk 0:00:06]} 44. Kg3 {[%clk 0:00:17]}  Rxe3+ {[%clk 0:00:06]} 45. Kf4 {[%clk 0:00:17]}  Re4+ {[%clk 0:00:07]} 46. Kf3 {[%clk 0:00:17]}  Kf7 {[%clk 0:00:08]} 47. g5 {[%clk 0:00:17]}  fxg5 {[%clk 0:00:08]} 48. hxg5 {[%clk 0:00:17]}  Kg6 {[%clk 0:00:09]} 49. Kg3 {[%clk 0:00:17]}  Kxg5 {[%clk 0:00:09]} 50. Kf3 {[%clk 0:00:17]}  Kf5 {[%clk 0:00:10]} 51. Kf2 {[%clk 0:00:17]}  Kf4 {[%clk 0:00:09]} 52. Kg2 {[%clk 0:00:17]}  Be6 {[%clk 0:00:10]} 53. Kf2 {[%clk 0:00:17]}  Ra4 {[%clk 0:00:10]} 0-1


[Site "https://www.chess.com"]

[Event "Titled Tuesday Blitz March 14 Early 2023"]
[White "Kraus, Tomas"]
[Black "Bongo Akanga Ndjila, Barthelemy"]
[WhiteFideId "331708"]
[BlackFideId "10609431"]
[WhiteElo "2389"]
[BlackElo "1768"]
[Result "1-0"]
[Round "05"]
[TimeControl "180+2"]
[Date "2023.03.14"]
[WhiteClock "0:00:50"]
[BlackClock "0:00:38"]

1. e4 {[%clk 0:03:00]}  e6 {[%clk 0:02:01]} 2. d3 {[%clk 0:02:59]}  d5 {[%clk 0:02:02]} 3. Qe2 {[%clk 0:02:59]}  Nf6 {[%clk 0:02:01]} 4. Nf3 {[%clk 0:02:59]}  c5 {[%clk 0:01:59]} 5. g3 {[%clk 0:02:59]}  d4 {[%clk 0:01:59]} 6. Bg2 {[%clk 0:02:55]}  Nc6 {[%clk 0:02:00]} 7. e5 {[%clk 0:02:48]}  Nd5 {[%clk 0:01:56]} 8. O-O {[%clk 0:02:48]}  Be7 {[%clk 0:01:44]} 9. Nbd2 {[%clk 0:02:46]}  O-O {[%clk 0:01:39]} 10. Ne4 {[%clk 0:02:45]}  b6 {[%clk 0:01:37]} 11. h4 {[%clk 0:02:35]}  h6 {[%clk 0:01:36]} 12. c4 {[%clk 0:02:18]}  dxc3 {[%clk 0:01:32]} 13. bxc3 {[%clk 0:02:18]}  Bb7 {[%clk 0:01:32]} 14. a3 {[%clk 0:02:14]}  Na5 {[%clk 0:01:30]} 15. Bb2 {[%clk 0:02:05]}  Rc8 {[%clk 0:01:24]} 16. c4 {[%clk 0:02:04]}  Nc7 {[%clk 0:01:18]} 17. Rad1 {[%clk 0:01:57]}  Ne8 {[%clk 0:01:17]} 18. Bh3 {[%clk 0:01:53]}  Nb3 {[%clk 0:01:13]} 19. h5 {[%clk 0:01:46]}  Nd4 {[%clk 0:01:12]} 20. Nxd4 {[%clk 0:01:46]}  cxd4 {[%clk 0:01:13]} 21. f4 {[%clk 0:01:45]}  Nc7 {[%clk 0:01:04]} 22. Bg2 {[%clk 0:01:38]}  Na6 {[%clk 0:01:04]} 23. Nf6+ {[%clk 0:01:38]}  gxf6 {[%clk 0:00:55]} 24. Bxb7 {[%clk 0:01:37]}  Nc5 {[%clk 0:00:54]} 25. Bxc8 {[%clk 0:01:32]}  Qxc8 {[%clk 0:00:53]} 26. Bxd4 {[%clk 0:01:31]}  f5 {[%clk 0:00:52]} 27. Bxc5 {[%clk 0:01:28]}  Bxc5+ {[%clk 0:00:49]} 28. Kh2 {[%clk 0:01:24]}  Kh7 {[%clk 0:00:48]} 29. g4 {[%clk 0:01:24]}  fxg4 {[%clk 0:00:44]} 30. d4 {[%clk 0:01:06]}  Bxa3 {[%clk 0:00:42]} 31. Qd3+ {[%clk 0:01:06]}  Kh8 {[%clk 0:00:42]} 32. Qxa3 {[%clk 0:01:06]}  Qe8 {[%clk 0:00:42]} 33. Kg3 {[%clk 0:00:56]}  Qd8 {[%clk 0:00:42]} 34. Qd6 {[%clk 0:00:53]}  Qc8 {[%clk 0:00:40]} 35. c5 {[%clk 0:00:53]}  bxc5 {[%clk 0:00:40]} 36. dxc5 {[%clk 0:00:53]}  Qb7 {[%clk 0:00:39]} 37. c6 {[%clk 0:00:50]}  Qb3+ {[%clk 0:00:38]} 38. Rd3 {[%clk 0:00:50]}  Qc2 {[%clk 0:00:38]} 39. Qxf8+ {[%clk 0:00:50]} 1-0


[Site "https://www.chess.com"]

[Event "Titled Tuesday Blitz March 14 Early 2023"]
[White "littlepillow2010"]
[Black "Necula, Iulian"]
[BlackFideId "1232380"]
[WhiteElo "2378"]
[BlackElo "1790"]
[Result "1-0"]
[Round "05"]
[TimeControl "180+2"]
[Date "2023.03.14"]
[WhiteClock "0:00:05"]
[BlackClock "0:00:12"]

1. e4 {[%clk 0:03:00]}  d6 {[%clk 0:03:00]} 2. d4 {[%clk 0:03:00]}  Nf6 {[%clk 0:03:00]} 3. Nc3 {[%clk 0:03:01]}  e5 {[%clk 0:03:01]} 4. Nf3 {[%clk 0:02:59]}  Nbd7 {[%clk 0:03:00]} 5. Bc4 {[%clk 0:02:59]}  Be7 {[%clk 0:03:00]} 6. O-O {[%clk 0:02:58]}  O-O {[%clk 0:03:00]} 7. dxe5 {[%clk 0:02:58]}  dxe5 {[%clk 0:02:59]} 8. Qe2 {[%clk 0:02:57]}  c6 {[%clk 0:02:58]} 9. h3 {[%clk 0:02:55]}  h6 {[%clk 0:02:58]} 10. a3 {[%clk 0:02:54]}  Qc7 {[%clk 0:02:58]} 11. Be3 {[%clk 0:02:54]}  b6 {[%clk 0:02:51]} 12. Nh4 {[%clk 0:02:54]}  Nc5 {[%clk 0:02:20]} 13. Nf5 {[%clk 0:02:48]}  Re8 {[%clk 0:02:19]} 14. Nxe7+ {[%clk 0:02:37]}  Qxe7 {[%clk 0:02:15]} 15. Qf3 {[%clk 0:02:28]}  b5 {[%clk 0:02:05]} 16. Ba2 {[%clk 0:02:26]}  a5 {[%clk 0:02:02]} 17. Bxc5 {[%clk 0:01:40]}  Qxc5 {[%clk 0:02:01]} 18. Rfd1 {[%clk 0:01:36]}  Be6 {[%clk 0:01:53]} 19. Bxe6 {[%clk 0:01:33]}  Rxe6 {[%clk 0:01:50]} 20. Rd3 {[%clk 0:01:31]}  Rae8 {[%clk 0:01:36]} 21. Kh2 {[%clk 0:01:25]}  b4 {[%clk 0:01:36]} 22. axb4 {[%clk 0:01:20]}  axb4 {[%clk 0:01:37]} 23. Na4 {[%clk 0:01:05]}  Qxc2 {[%clk 0:01:36]} 24. Qe3 {[%clk 0:01:05]}  Qc4 {[%clk 0:01:22]} 25. Nc5 {[%clk 0:00:48]}  R6e7 {[%clk 0:01:14]} 26. Ra5 {[%clk 0:00:47]}  Nh5 {[%clk 0:00:58]} 27. b3 {[%clk 0:00:44]}  Qc2 {[%clk 0:00:56]} 28. g3 {[%clk 0:00:25]}  f5 {[%clk 0:00:50]} 29. exf5 {[%clk 0:00:19]}  Nf6 {[%clk 0:00:49]} 30. Rd2 {[%clk 0:00:10]}  Qc1 {[%clk 0:00:48]} 31. Ne6 {[%clk 0:00:06]}  Nd5 {[%clk 0:00:44]} 32. Qe2 {[%clk 0:00:05]}  Nc3 {[%clk 0:00:35]} 33. Qd3 {[%clk 0:00:06]}  e4 {[%clk 0:00:22]} 34. Qd4 {[%clk 0:00:05]}  e3 {[%clk 0:00:18]} 35. Qxe3 {[%clk 0:00:04]}  g6 {[%clk 0:00:16]} 36. Re5 {[%clk 0:00:03]}  g5 {[%clk 0:00:14]} 37. f6 {[%clk 0:00:02]}  Rf7 {[%clk 0:00:13]} 38. Nd4 {[%clk 0:00:02]}  Rxe5 {[%clk 0:00:12]} 39. Qxe5 {[%clk 0:00:03]}  Qxd2 {[%clk 0:00:12]} 40. Qe8+ {[%clk 0:00:04]}  Rf8 {[%clk 0:00:12]} 41. Qg6+ {[%clk 0:00:04]}  Kh8 {[%clk 0:00:12]} 42. Qg7# {[%clk 0:00:05]} 1-0


[Site "https://www.chess.com"]

[Event "Titled Tuesday Blitz March 14 Early 2023"]
[White "Kalajzic, Ivan"]
[Black "Dzhumagaliev, Yan"]
[WhiteFideId "14506378"]
[BlackFideId "24100110"]
[WhiteElo "2203"]
[BlackElo "2476"]
[Result "0-1"]
[Round "05"]
[TimeControl "180+2"]
[Date "2023.03.14"]
[WhiteClock "0:00:04"]
[BlackClock "0:00:10"]

1. b3 {[%clk 0:02:46]}  h5 {[%clk 0:03:00]} 2. Bb2 {[%clk 0:02:45]}  h4 {[%clk 0:03:01]} 3. h3 {[%clk 0:02:45]}  d5 {[%clk 0:03:02]} 4. c4 {[%clk 0:02:45]}  d4 {[%clk 0:03:02]} 5. Nf3 {[%clk 0:02:35]}  c5 {[%clk 0:03:02]} 6. d3 {[%clk 0:02:31]}  Nc6 {[%clk 0:03:02]} 7. e3 {[%clk 0:02:27]}  e5 {[%clk 0:03:02]} 8. exd4 {[%clk 0:02:26]}  cxd4 {[%clk 0:03:03]} 9. Be2 {[%clk 0:02:25]}  Bb4+ {[%clk 0:03:02]} 10. Nbd2 {[%clk 0:02:25]}  e4 {[%clk 0:03:00]} 11. dxe4 {[%clk 0:02:14]}  d3 {[%clk 0:03:00]} 12. Bf1 {[%clk 0:02:15]}  Nf6 {[%clk 0:03:00]} 13. a3 {[%clk 0:02:11]}  Be7 {[%clk 0:02:29]} 14. Qb1 {[%clk 0:02:05]}  O-O {[%clk 0:02:19]} 15. Qxd3 {[%clk 0:02:05]}  Qc7 {[%clk 0:02:19]} 16. Be2 {[%clk 0:02:02]}  Nh5 {[%clk 0:02:15]} 17. Qe3 {[%clk 0:01:51]}  Nf4 {[%clk 0:02:09]} 18. O-O {[%clk 0:01:37]}  b6 {[%clk 0:02:09]} 19. e5 {[%clk 0:01:35]}  Ng6 {[%clk 0:02:05]} 20. Bd3 {[%clk 0:01:31]}  Bc5 {[%clk 0:01:56]} 21. Qg5 {[%clk 0:01:28]}  Nce7 {[%clk 0:01:55]} 22. Ne4 {[%clk 0:01:21]}  Rd8 {[%clk 0:01:44]} 23. Rad1 {[%clk 0:01:09]}  Bb7 {[%clk 0:01:45]} 24. Nf6+ {[%clk 0:00:59]}  Kf8 {[%clk 0:01:35]} 25. Bxg6 {[%clk 0:00:47]}  Nxg6 {[%clk 0:01:32]} 26. Nxh4 {[%clk 0:00:43]}  Rxd1 {[%clk 0:00:30]} 27. Rxd1 {[%clk 0:00:42]}  Qc6 {[%clk 0:00:29]} 28. Nxg6+ {[%clk 0:00:31]}  fxg6 {[%clk 0:00:30]} 29. Nd5 {[%clk 0:00:32]}  Re8 {[%clk 0:00:26]} 30. Rd3 {[%clk 0:00:31]}  Kg8 {[%clk 0:00:26]} 31. Rg3 {[%clk 0:00:28]}  Rf8 {[%clk 0:00:24]} 32. Ne3 {[%clk 0:00:21]}  Bxe3 {[%clk 0:00:18]} 33. Qxe3 {[%clk 0:00:20]}  Qe6 {[%clk 0:00:16]} 34. Qg5 {[%clk 0:00:18]}  Be4 {[%clk 0:00:17]} 35. Qe3 {[%clk 0:00:15]}  Bb1 {[%clk 0:00:16]} 36. Rf3 {[%clk 0:00:14]}  Rd8 {[%clk 0:00:17]} 37. Qf4 {[%clk 0:00:13]}  Bf5 {[%clk 0:00:17]} 38. g4 {[%clk 0:00:13]}  Bc2 {[%clk 0:00:17]} 39. Kh2 {[%clk 0:00:11]}  Bd1 {[%clk 0:00:17]} 40. Re3 {[%clk 0:00:10]}  Rd2 {[%clk 0:00:17]} 41. Bd4 {[%clk 0:00:09]}  Bc2 {[%clk 0:00:16]} 42. b4 {[%clk 0:00:08]}  g5 {[%clk 0:00:15]} 43. Qxg5 {[%clk 0:00:06]}  Rxf2+ {[%clk 0:00:16]} 44. Kg3 {[%clk 0:00:06]}  Rf8 {[%clk 0:00:16]} 45. Rf3 {[%clk 0:00:05]}  Rxf3+ {[%clk 0:00:16]} 46. Kxf3 {[%clk 0:00:06]}  Qxc4 {[%clk 0:00:16]} 47. Qf4 {[%clk 0:00:06]}  Qf1+ {[%clk 0:00:15]} 48. Bf2 {[%clk 0:00:05]}  Qh1+ {[%clk 0:00:14]} 49. Kg3 {[%clk 0:00:05]}  Qd5 {[%clk 0:00:11]} 50. Qd4 {[%clk 0:00:04]}  Qb3+ {[%clk 0:00:10]} 51. Be3 {[%clk 0:00:04]}  Bg6 {[%clk 0:00:10]} 52. Qf4 {[%clk 0:00:03]}  Bf7 {[%clk 0:00:10]} 53. h4 {[%clk 0:00:04]}  Qxa3 {[%clk 0:00:10]} 54. h5 {[%clk 0:00:04]}  a5 {[%clk 0:00:11]} 55. Kh4 {[%clk 0:00:05]}  axb4 {[%clk 0:00:07]} 56. g5 {[%clk 0:00:05]}  b3 {[%clk 0:00:06]} 57. g6 {[%clk 0:00:05]}  Qe7+ {[%clk 0:00:07]} 58. Qg5 {[%clk 0:00:04]}  Qxg5+ {[%clk 0:00:07]} 59. Kxg5 {[%clk 0:00:05]}  b2 {[%clk 0:00:08]} 60. gxf7+ {[%clk 0:00:04]}  Kxf7 {[%clk 0:00:09]} 61. h6 {[%clk 0:00:04]}  gxh6+ {[%clk 0:00:09]} 62. Kxh6 {[%clk 0:00:04]}  b1=Q {[%clk 0:00:10]} 63. Bg5 {[%clk 0:00:04]}  Qg6# {[%clk 0:00:10]} 0-1


[Site "https://www.chess.com"]

[Event "Titled Tuesday Blitz March 14 Early 2023"]
[White "Barria Santos, Jose Guilherme"]
[Black "Aanan, Shafiuddin"]
[WhiteFideId "1939300"]
[BlackFideId "3242633"]
[WhiteElo "2301"]
[BlackElo "1648"]
[Result "0-1"]
[Round "05"]
[TimeControl "180+2"]
[Date "2023.03.14"]
[WhiteClock "0:00:05"]
[BlackClock "0:00:15"]

1. e4 {[%clk 0:03:00]}  c5 {[%clk 0:01:47]} 2. Nf3 {[%clk 0:02:56]}  d6 {[%clk 0:01:45]} 3. d4 {[%clk 0:02:56]}  cxd4 {[%clk 0:01:45]} 4. Nxd4 {[%clk 0:02:57]}  Nf6 {[%clk 0:01:45]} 5. Nc3 {[%clk 0:02:58]}  a6 {[%clk 0:01:45]} 6. Bg5 {[%clk 0:02:58]}  e6 {[%clk 0:01:45]} 7. f4 {[%clk 0:02:58]}  Be7 {[%clk 0:01:45]} 8. Qf3 {[%clk 0:02:57]}  Qc7 {[%clk 0:01:43]} 9. O-O-O {[%clk 0:02:57]}  Nbd7 {[%clk 0:01:43]} 10. Bd3 {[%clk 0:02:57]}  b5 {[%clk 0:01:41]} 11. Rhe1 {[%clk 0:02:57]}  Bb7 {[%clk 0:01:40]} 12. Nd5 {[%clk 0:02:58]}  exd5 {[%clk 0:01:34]} 13. Nf5 {[%clk 0:02:58]}  Kf8 {[%clk 0:00:52]} 14. exd5 {[%clk 0:02:57]}  Bd8 {[%clk 0:00:48]} 15. Qg3 {[%clk 0:02:54]}  Rg8 {[%clk 0:00:41]} 16. Nxg7 {[%clk 0:02:53]}  Rxg7 {[%clk 0:00:41]} 17. Bh6 {[%clk 0:02:54]}  Nh5 {[%clk 0:00:41]} 18. Qe3 {[%clk 0:02:53]}  Bf6 {[%clk 0:00:39]} 19. g4 {[%clk 0:02:50]}  Qa5 {[%clk 0:00:28]} 20. Kb1 {[%clk 0:02:26]}  Bxd5 {[%clk 0:00:27]} 21. a3 {[%clk 0:01:58]}  b4 {[%clk 0:00:22]} 22. gxh5 {[%clk 0:01:56]}  bxa3 {[%clk 0:00:20]} 23. Bxh7 {[%clk 0:00:34]}  axb2 {[%clk 0:00:16]} 24. Bxg7+ {[%clk 0:00:26]}  Kxg7 {[%clk 0:00:16]} 25. Rg1+ {[%clk 0:00:23]}  Kh8 {[%clk 0:00:16]} 26. c3 {[%clk 0:00:05]}  Qa2+ {[%clk 0:00:15]} 27. Kc2 {[%clk 0:00:05]}  b1=Q# {[%clk 0:00:15]} 0-1


[Site "https://www.chess.com"]